[Event "Late-Titled-Tuesday-Blitz-April-23-2024"]
[Site "Chess.com"]
[Date "2024.04.23"]
[Round "7"]
[White "ACollins05"]
[Black "HamedWafa4"]
[Result "1-0"]
[WhiteElo "2545"]
[BlackElo "2700"]
[TimeControl "180+1"]
[EndTime "15:19:44 PDT"]
[Termination "ACollins05 won by resignation"]

1. a3 {[%clk 0:02:56.7]} 1... a6 {[%clk 0:03:00.9]} 2. b4 {[%clk 0:02:55]} 2...
b5 {[%clk 0:02:57.1]} 3. Bb2 {[%clk 0:02:54.1]} 3... Bb7 {[%clk 0:02:57.7]} 4.
e3 {[%clk 0:02:53.6]} 4... Nf6 {[%clk 0:02:57.8]} 5. Nf3 {[%clk 0:02:53.9]} 5...
e6 {[%clk 0:02:57.9]} 6. Be2 {[%clk 0:02:51.7]} 6... c5 {[%clk 0:02:58.1]} 7.
bxc5 {[%clk 0:02:51.8]} 7... Bxc5 {[%clk 0:02:59]} 8. d4 {[%clk 0:02:50.4]} 8...
Be7 {[%clk 0:02:59.6]} 9. c4 {[%clk 0:02:50.8]} 9... bxc4 {[%clk 0:02:56.9]} 10.
Bxc4 {[%clk 0:02:51.7]} 10... O-O {[%clk 0:02:57.4]} 11. O-O {[%clk 0:02:51.1]}
11... Nc6 {[%clk 0:02:57.6]} 12. Nbd2 {[%clk 0:02:50.7]} 12... Rc8 {[%clk
0:02:56.3]} 13. Qe2 {[%clk 0:02:49.4]} 13... Qb6 {[%clk 0:02:22.7]} 14. Rab1
{[%clk 0:02:48.4]} 14... Qa7 {[%clk 0:02:23.2]} 15. Rfc1 {[%clk 0:02:38]} 15...
Na5 {[%clk 0:02:15.6]} 16. Bd3 {[%clk 0:02:37]} 16... Rxc1+ {[%clk 0:02:05.9]}
17. Rxc1 {[%clk 0:02:36.3]} 17... Rb8 {[%clk 0:02:06.8]} 18. Rb1 {[%clk
0:02:32.2]} 18... Bd5 {[%clk 0:02:02.6]} 19. Bc3 {[%clk 0:02:27]} 19... Rxb1+
{[%clk 0:01:59]} 20. Nxb1 {[%clk 0:02:27.9]} 20... Nb3 {[%clk 0:01:57.9]} 21.
Bb4 {[%clk 0:02:22.9]} 21... Bxb4 {[%clk 0:01:53.9]} 22. axb4 {[%clk 0:02:23.8]}
22... Nc1 {[%clk 0:01:54.6]} 23. Qc2 {[%clk 0:02:23.1]} 23... g5 {[%clk
0:01:32.8]} 24. Qxc1 {[%clk 0:02:15.8]} 24... g4 {[%clk 0:01:33.2]} 25. Ne5
{[%clk 0:02:10.5]} 25... Qb7 {[%clk 0:01:33.7]} 26. Bf1 {[%clk 0:01:54.7]} 26...
Qxb4 {[%clk 0:01:31.7]} 27. Bxa6 {[%clk 0:01:49.6]} 27... d6 {[%clk 0:01:29.7]}
28. Nd3 {[%clk 0:01:43.4]} 28... Qb6 {[%clk 0:01:29.9]} 29. Bc8 {[%clk
0:01:38.8]} 29... Be4 {[%clk 0:01:21]} 30. Nb2 {[%clk 0:01:20.6]} 30... Nd5
{[%clk 0:01:08.1]} 31. Nd2 {[%clk 0:01:15.2]} 31... Bg6 {[%clk 0:01:04.6]} 32.
Nbc4 {[%clk 0:01:07.3]} 32... Qc6 {[%clk 0:01:01.2]} 33. Nb3 {[%clk 0:01:02.8]}
33... Qxc8 {[%clk 0:01:00.3]} 34. Nxd6 {[%clk 0:01:03.2]} 34... Qb8 {[%clk
0:00:59.8]} 35. Qc8+ {[%clk 0:01:01.3]} 35... Qxc8 {[%clk 0:00:59.7]} 36. Nxc8
{[%clk 0:01:02.2]} 36... Nc3 {[%clk 0:00:57.1]} 37. Ne7+ {[%clk 0:01:01.3]}
37... Kg7 {[%clk 0:00:56.9]} 38. Nxg6 {[%clk 0:01:01.7]} 38... hxg6 {[%clk
0:00:57.6]} 39. Kf1 {[%clk 0:01:01.8]} 39... f5 {[%clk 0:00:57.7]} 40. Nc5
{[%clk 0:01:01.4]} 40... Kf6 {[%clk 0:00:57.9]} 41. Nd3 {[%clk 0:01:01.6]} 41...
g5 {[%clk 0:00:56.2]} 42. Ne5 {[%clk 0:00:57.3]} 42... Ne4 {[%clk 0:00:54.3]}
43. Ke2 {[%clk 0:00:56.1]} 43... Nc3+ {[%clk 0:00:54.4]} 44. Kd3 {[%clk
0:00:55.9]} 44... Ne4 {[%clk 0:00:55]} 45. f3 {[%clk 0:00:56.4]} 45... gxf3
{[%clk 0:00:55.1]} 46. gxf3 {[%clk 0:00:57.3]} 46... Nf2+ {[%clk 0:00:55.5]} 47.
Ke2 {[%clk 0:00:55.5]} 47... Nh3 {[%clk 0:00:56.1]} 48. Kf1 {[%clk 0:00:43.9]}
48... g4 {[%clk 0:00:42.7]} 49. fxg4 {[%clk 0:00:43.2]} 49... Kg5 {[%clk
0:00:41.2]} 50. Kg2 {[%clk 0:00:36.9]} 50... fxg4 {[%clk 0:00:41.3]} 51. Kg3
{[%clk 0:00:33.3]} 51... Ng1 {[%clk 0:00:39.1]} 52. Nxg4 {[%clk 0:00:30]} 52...
Ne2+ {[%clk 0:00:39.3]} 53. Kf2 {[%clk 0:00:24]} 53... Nc3 {[%clk 0:00:38]} 54.
Ne5 {[%clk 0:00:21.5]} 54... Ne4+ {[%clk 0:00:34.2]} 55. Kf3 {[%clk 0:00:21.9]}
55... Nd2+ {[%clk 0:00:34.5]} 56. Kg3 {[%clk 0:00:21.3]} 56... Nf1+ {[%clk
0:00:34.4]} 57. Kf2 {[%clk 0:00:19.3]} 57... Nxh2 {[%clk 0:00:34.6]} 58. Kg2
{[%clk 0:00:19.7]} 58... Ng4 {[%clk 0:00:32.5]} 59. Nxg4 {[%clk 0:00:19.9]}
59... Kxg4 {[%clk 0:00:33.1]} 60. Kf2 {[%clk 0:00:20]} 60... Kg5 {[%clk
0:00:29.9]} 61. Kg3 {[%clk 0:00:20.1]} 61... Kf5 {[%clk 0:00:30.2]} 62. Kf3
{[%clk 0:00:20.1]} 62... Kf6 {[%clk 0:00:30.6]} 63. Kf4 {[%clk 0:00:19.8]} 63...
Kf7 {[%clk 0:00:28.5]} 64. Ke5 {[%clk 0:00:18.8]} 64... Ke7 {[%clk 0:00:28.6]}
65. e4 {[%clk 0:00:19.3]} 65... Kf7 {[%clk 0:00:29.2]} 66. Kd6 {[%clk
0:00:18.9]} 66... Kf6 {[%clk 0:00:30.1]} 67. e5+ {[%clk 0:00:19.1]} 67... Kf5
{[%clk 0:00:31]} 68. Ke7 {[%clk 0:00:19.3]} 68... Ke4 {[%clk 0:00:31.4]} 69.
Kxe6 {[%clk 0:00:19.7]} 69... Kxd4 {[%clk 0:00:32.1]} 70. Kf6 {[%clk 0:00:20.1]}
1-0

[Event "Late-Titled-Tuesday-Blitz-April-23-2024"]
[Site "Chess.com"]
[Date "2024.04.23"]
[Round "7"]
[White "NovakRatko"]
[Black "cthake"]
[Result "1-0"]
[WhiteElo "2382"]
[BlackElo "1874"]
[TimeControl "180+1"]
[EndTime "15:19:45 PDT"]
[Termination "NovakRatko won by checkmate"]

1. d4 {[%clk 0:02:45.2]} 1... Nf6 {[%clk 0:02:58.5]} 2. c4 {[%clk 0:02:33.2]}
2... e6 {[%clk 0:02:57.9]} 3. a3 {[%clk 0:02:29.2]} 3... c5 {[%clk 0:02:57.8]}
4. d5 {[%clk 0:02:28.3]} 4... exd5 {[%clk 0:02:56.9]} 5. cxd5 {[%clk 0:02:20.4]}
5... d6 {[%clk 0:02:56.8]} 6. Nc3 {[%clk 0:02:18.5]} 6... g6 {[%clk 0:02:56.8]}
7. e4 {[%clk 0:02:18.9]} 7... Bg7 {[%clk 0:02:56.6]} 8. f4 {[%clk 0:02:19.3]}
8... O-O {[%clk 0:02:56.4]} 9. Bd3 {[%clk 0:02:19.9]} 9... a6 {[%clk 0:02:51.1]}
10. a4 {[%clk 0:02:16.1]} 10... Re8 {[%clk 0:02:48.7]} 11. Nge2 {[%clk
0:02:09.3]} 11... Bg4 {[%clk 0:02:42.2]} 12. O-O {[%clk 0:02:07.4]} 12... Nbd7
{[%clk 0:02:23]} 13. a5 {[%clk 0:01:58]} 13... Rc8 {[%clk 0:02:22.1]} 14. h3
{[%clk 0:01:43.5]} 14... Bxe2 {[%clk 0:02:18.7]} 15. Qxe2 {[%clk 0:01:43.1]}
15... Nh5 {[%clk 0:02:12.5]} 16. Qf3 {[%clk 0:01:36.6]} 16... c4 {[%clk
0:02:09.4]} 17. Bc2 {[%clk 0:01:34.7]} 17... Nc5 {[%clk 0:01:58.9]} 18. Be3
{[%clk 0:01:10.4]} 18... b5 {[%clk 0:01:40.9]} 19. axb6 {[%clk 0:01:09]} 19...
Qxb6 {[%clk 0:01:40.6]} 20. Na4 {[%clk 0:01:03.1]} 20... Qb5 {[%clk 0:01:34.9]}
21. Nxc5 {[%clk 0:01:02.6]} 21... Qxb2 {[%clk 0:01:05.3]} 22. Ba4 {[%clk
0:00:58.3]} 22... dxc5 {[%clk 0:01:03.8]} 23. Bxe8 {[%clk 0:00:57.6]} 23... Rxe8
{[%clk 0:01:04]} 24. e5 {[%clk 0:00:40.9]} 24... f5 {[%clk 0:00:59.2]} 25. d6
{[%clk 0:00:29.4]} 25... c3 {[%clk 0:00:45.9]} 26. Qd5+ {[%clk 0:00:15.5]} 26...
Kh8 {[%clk 0:00:44.4]} 27. d7 {[%clk 0:00:15.2]} 27... Rd8 {[%clk 0:00:44.3]}
28. Rxa6 {[%clk 0:00:15]} 28... c2 {[%clk 0:00:36.9]} 29. Ra8 {[%clk 0:00:14.6]}
29... Qb6 {[%clk 0:00:31.6]} 30. Bxc5 {[%clk 0:00:13.1]} 30... Qc7 {[%clk
0:00:31.2]} 31. Rxd8+ {[%clk 0:00:12.3]} 31... Qxd8 {[%clk 0:00:30.9]} 32. Be7
{[%clk 0:00:12.2]} 32... Qxe7 {[%clk 0:00:27.1]} 33. d8=Q+ {[%clk 0:00:11.8]}
33... Qf8 {[%clk 0:00:27.2]} 34. Q5d6 {[%clk 0:00:08.4]} 34... Kg8 {[%clk
0:00:22.2]} 35. Qe6+ {[%clk 0:00:08.4]} 35... Kh8 {[%clk 0:00:20.5]} 36. Qxf8+
{[%clk 0:00:07.8]} 36... Bxf8 {[%clk 0:00:20.7]} 37. Qe8 {[%clk 0:00:07.4]}
37... Kg7 {[%clk 0:00:20.3]} 38. Qd7+ {[%clk 0:00:07.1]} 38... Kg8 {[%clk
0:00:19.2]} 39. Qc8 {[%clk 0:00:07.4]} 39... Kg7 {[%clk 0:00:19.1]} 40. Qxc2
{[%clk 0:00:07.6]} 40... Ng3 {[%clk 0:00:17.9]} 41. Rd1 {[%clk 0:00:07.2]} 41...
Ne4 {[%clk 0:00:17.6]} 42. Rd7+ {[%clk 0:00:06.4]} 42... Kh6 {[%clk 0:00:17.6]}
43. Qc8 {[%clk 0:00:06.1]} 43... Bc5+ {[%clk 0:00:17.5]} 44. Kh2 {[%clk
0:00:06.5]} 44... Bf2 {[%clk 0:00:16]} 45. g4 {[%clk 0:00:05.5]} 45... fxg4
{[%clk 0:00:15.6]} 46. hxg4 {[%clk 0:00:05.8]} 46... Bg3+ {[%clk 0:00:14.4]} 47.
Kg2 {[%clk 0:00:06.1]} 47... Bxf4 {[%clk 0:00:14.7]} 48. Kf3 {[%clk 0:00:06.5]}
48... Kg5 {[%clk 0:00:14.8]} 49. Qd8+ {[%clk 0:00:06.2]} 49... Kh6 {[%clk
0:00:08.7]} 50. Kxf4 {[%clk 0:00:06]} 50... Nc5 {[%clk 0:00:05.1]} 51. Qh4#
{[%clk 0:00:05.6]} 1-0

[Event "Late-Titled-Tuesday-Blitz-April-23-2024"]
[Site "Chess.com"]
[Date "2024.04.23"]
[Round "7"]
[White "GlavkonVVS"]
[Black "DominguezOnYoutube"]
[Result "0-1"]
[WhiteElo "2663"]
[BlackElo "2964"]
[TimeControl "180+1"]
[EndTime "15:19:53 PDT"]
[Termination "DominguezOnYoutube won by resignation"]

1. c4 {[%clk 0:03:00.9]} 1... c5 {[%clk 0:02:57.9]} 2. Nc3 {[%clk 0:03:01]} 2...
g6 {[%clk 0:02:57.7]} 3. g3 {[%clk 0:03:01.7]} 3... Bg7 {[%clk 0:02:57.7]} 4.
Bg2 {[%clk 0:03:02.5]} 4... Nc6 {[%clk 0:02:58.1]} 5. Nf3 {[%clk 0:03:03.2]}
5... d6 {[%clk 0:02:55]} 6. d3 {[%clk 0:03:03.8]} 6... Nf6 {[%clk 0:02:50.4]} 7.
a3 {[%clk 0:03:02.5]} 7... O-O {[%clk 0:02:49.7]} 8. Rb1 {[%clk 0:03:02.7]} 8...
d5 {[%clk 0:02:38.2]} 9. cxd5 {[%clk 0:02:57.2]} 9... Nxd5 {[%clk 0:02:37.8]}
10. Bd2 {[%clk 0:02:57.8]} 10... Nxc3 {[%clk 0:02:11.4]} 11. bxc3 {[%clk
0:02:53.6]} 11... b6 {[%clk 0:02:10.6]} 12. h4 {[%clk 0:02:44.7]} 12... h5
{[%clk 0:02:01.3]} 13. O-O {[%clk 0:02:44]} 13... Bb7 {[%clk 0:01:57.5]} 14. Ng5
{[%clk 0:02:41.4]} 14... Qd7 {[%clk 0:01:50.1]} 15. Ne4 {[%clk 0:02:25.4]} 15...
Rad8 {[%clk 0:01:43.4]} 16. Re1 {[%clk 0:02:21]} 16... Ba8 {[%clk 0:01:39.5]}
17. Qa4 {[%clk 0:02:14.9]} 17... Ne5 {[%clk 0:01:26.5]} 18. Qc2 {[%clk
0:02:00.2]} 18... Bc6 {[%clk 0:01:25.8]} 19. Bg5 {[%clk 0:01:49.7]} 19... Ng4
{[%clk 0:01:24]} 20. Qc1 {[%clk 0:01:34.7]} 20... Qe6 {[%clk 0:01:15.2]} 21. Bf4
{[%clk 0:01:30.2]} 21... Qd7 {[%clk 0:01:12.6]} 22. Bf3 {[%clk 0:01:11.8]} 22...
Nf6 {[%clk 0:01:11.8]} 23. Nxf6+ {[%clk 0:01:11.1]} 23... Bxf6 {[%clk
0:01:12.1]} 24. Bxc6 {[%clk 0:01:09.9]} 24... Qxc6 {[%clk 0:01:12.9]} 25. Qe3
{[%clk 0:01:09]} 25... Qa4 {[%clk 0:01:01.4]} 26. Be5 {[%clk 0:01:03.2]} 26...
Rd5 {[%clk 0:00:56.5]} 27. Bxf6 {[%clk 0:01:02.2]} 27... exf6 {[%clk 0:00:57.4]}
28. Qe7 {[%clk 0:00:50.5]} 28... Kg7 {[%clk 0:00:52.9]} 29. c4 {[%clk
0:00:29.1]} 29... Re5 {[%clk 0:00:52]} 30. Qb7 {[%clk 0:00:28]} 30... Rfe8
{[%clk 0:00:51.7]} 31. Kf1 {[%clk 0:00:21.9]} 31... R8e7 {[%clk 0:00:44.6]} 32.
Qa8 {[%clk 0:00:20.2]} 32... f5 {[%clk 0:00:27.6]} 33. Qf3 {[%clk 0:00:19]}
33... Qxa3 {[%clk 0:00:26.1]} 34. Ra1 {[%clk 0:00:18.7]} 34... Qc3 {[%clk
0:00:26.2]} 35. Ra2 {[%clk 0:00:17.4]} 35... Qd4 {[%clk 0:00:24.7]} 36. Rb1
{[%clk 0:00:16.9]} 36... R5e6 {[%clk 0:00:21]} 37. Rba1 {[%clk 0:00:15.7]} 37...
a5 {[%clk 0:00:20.4]} 38. Rb1 {[%clk 0:00:16]} 38... Rf6 {[%clk 0:00:18.5]} 39.
Rab2 {[%clk 0:00:16.1]} 39... Ree6 {[%clk 0:00:18.4]} 40. Rb5 {[%clk 0:00:15.8]}
40... f4 {[%clk 0:00:18.2]} 41. g4 {[%clk 0:00:16.2]} 41... hxg4 {[%clk
0:00:17.8]} 42. Qxg4 {[%clk 0:00:16.7]} 42... Qe5 {[%clk 0:00:17.9]} 43. Kg2
{[%clk 0:00:12.7]} 43... a4 {[%clk 0:00:15.5]} 44. Qf3 {[%clk 0:00:11.7]} 44...
a3 {[%clk 0:00:15.5]} 45. Rd1 {[%clk 0:00:07.9]} 45... a2 {[%clk 0:00:15.3]} 46.
d4 {[%clk 0:00:07.6]} 46... Qxe2 {[%clk 0:00:14.6]} 47. Qxe2 {[%clk 0:00:06.2]}
47... Rxe2 {[%clk 0:00:15.2]} 48. Ra1 {[%clk 0:00:06]} 48... cxd4 {[%clk
0:00:13.4]} 49. Kf3 {[%clk 0:00:06.2]} 49... d3 {[%clk 0:00:13.3]} 50. Rd5
{[%clk 0:00:06.3]} 50... Rd2 {[%clk 0:00:12.2]} 51. Ke4 {[%clk 0:00:05]} 51...
Rc6 {[%clk 0:00:10.6]} 52. Rxd3 {[%clk 0:00:04.4]} 52... Rxc4+ {[%clk
0:00:10.7]} 53. Kd5 {[%clk 0:00:04.8]} 53... Rxd3+ {[%clk 0:00:11]} 54. Kxc4
{[%clk 0:00:05.2]} 54... Ra3 {[%clk 0:00:10.3]} 55. Kb4 {[%clk 0:00:05]} 55...
Ra5 {[%clk 0:00:10.1]} 56. f3 {[%clk 0:00:04.4]} 56... Kh6 {[%clk 0:00:10]} 57.
Kb3 {[%clk 0:00:04.3]} 57... Kh5 {[%clk 0:00:10.3]} 58. Kb2 {[%clk 0:00:04.7]}
58... Kxh4 {[%clk 0:00:10.1]} 59. Rh1+ {[%clk 0:00:04.7]} 59... Kg3 {[%clk
0:00:10.7]} 0-1

[Event "Late-Titled-Tuesday-Blitz-April-23-2024"]
[Site "Chess.com"]
[Date "2024.04.23"]
[Round "7"]
[White "Airquake"]
[Black "Harsha_Bharathakoti"]
[Result "1-0"]
[WhiteElo "2674"]
[BlackElo "2888"]
[TimeControl "180+1"]
[EndTime "15:19:54 PDT"]
[Termination "Airquake won by resignation"]

1. e4 {[%clk 0:03:00.9]} 1... g6 {[%clk 0:02:56.7]} 2. Nf3 {[%clk 0:03:00.9]}
2... Bg7 {[%clk 0:02:56.1]} 3. d4 {[%clk 0:03:00.9]} 3... d6 {[%clk 0:02:56.7]}
4. c3 {[%clk 0:02:56]} 4... a6 {[%clk 0:02:50.2]} 5. Be3 {[%clk 0:02:55.5]} 5...
Nf6 {[%clk 0:02:45.2]} 6. Nbd2 {[%clk 0:02:55.7]} 6... O-O {[%clk 0:02:45.7]} 7.
h3 {[%clk 0:02:55]} 7... Nc6 {[%clk 0:02:45.5]} 8. Bd3 {[%clk 0:02:49.9]} 8...
e5 {[%clk 0:02:45.7]} 9. O-O {[%clk 0:02:47.9]} 9... Nh5 {[%clk 0:02:31.6]} 10.
Re1 {[%clk 0:02:46.8]} 10... h6 {[%clk 0:02:29.5]} 11. Qb3 {[%clk 0:02:43.9]}
11... Kh7 {[%clk 0:02:25.1]} 12. Rad1 {[%clk 0:02:41.3]} 12... Rb8 {[%clk
0:02:23.9]} 13. dxe5 {[%clk 0:02:36.1]} 13... dxe5 {[%clk 0:02:23.8]} 14. Nc4
{[%clk 0:02:14.4]} 14... Be6 {[%clk 0:02:19.1]} 15. Qa3 {[%clk 0:02:09.8]} 15...
Qc8 {[%clk 0:02:05.2]} 16. Bf1 {[%clk 0:02:07.4]} 16... Re8 {[%clk 0:01:56.9]}
17. Na5 {[%clk 0:02:01.2]} 17... Ne7 {[%clk 0:01:27.3]} 18. Nb3 {[%clk 0:01:54]}
18... Nf4 {[%clk 0:00:49.1]} 19. Nc5 {[%clk 0:01:46.7]} 19... Nc6 {[%clk
0:00:49.4]} 20. Nxe6 {[%clk 0:01:42.9]} 20... Qxe6 {[%clk 0:00:50.3]} 21. Rd2
{[%clk 0:01:37.8]} 21... Bf8 {[%clk 0:00:50.5]} 22. Qa4 {[%clk 0:01:35.9]} 22...
Rbd8 {[%clk 0:00:50.5]} 23. Red1 {[%clk 0:01:17.5]} 23... Rxd2 {[%clk
0:00:50.4]} 24. Rxd2 {[%clk 0:01:18.4]} 24... Rd8 {[%clk 0:00:51]} 25. Rxd8
{[%clk 0:01:10.3]} 25... Nxd8 {[%clk 0:00:51.9]} 26. Bxf4 {[%clk 0:01:06.8]}
26... exf4 {[%clk 0:00:52.2]} 27. e5 {[%clk 0:01:07.7]} 27... g5 {[%clk
0:00:48.2]} 28. Bd3+ {[%clk 0:01:02.8]} 28... Kg8 {[%clk 0:00:46.7]} 29. Qe4
{[%clk 0:01:02.6]} 29... Bg7 {[%clk 0:00:47.2]} 30. Bc4 {[%clk 0:00:56.7]} 30...
Qd7 {[%clk 0:00:46.9]} 31. Nd4 {[%clk 0:00:55]} 31... b5 {[%clk 0:00:40]} 32.
Bb3 {[%clk 0:00:54.6]} 32... c5 {[%clk 0:00:39.7]} 33. e6 {[%clk 0:00:44.2]}
33... fxe6 {[%clk 0:00:40]} 34. Bxe6+ {[%clk 0:00:35]} 34... Nxe6 {[%clk
0:00:40]} 35. Nxe6 {[%clk 0:00:35.9]} 35... c4 {[%clk 0:00:30.6]} 36. Nc5 {[%clk
0:00:32.6]} 36... Qd6 {[%clk 0:00:23.8]} 37. Qe8+ {[%clk 0:00:30.8]} 37... Kh7
{[%clk 0:00:24.1]} 38. Ne6 {[%clk 0:00:24.4]} 38... Qe5 {[%clk 0:00:09.5]} 39.
Qf7 {[%clk 0:00:24.2]} 39... Qf6 {[%clk 0:00:07.3]} 40. Qd7 {[%clk 0:00:08.9]}
40... h5 {[%clk 0:00:02.8]} 41. Qd5 {[%clk 0:00:05.1]} 41... Kh6 {[%clk
0:00:02.4]} 42. Nd8 {[%clk 0:00:04.2]} 42... Kg6 {[%clk 0:00:01.5]} 43. Nc6
{[%clk 0:00:03.7]} 43... g4 {[%clk 0:00:01.5]} 44. hxg4 {[%clk 0:00:03.2]} 44...
hxg4 {[%clk 0:00:02]} 45. Qe4+ {[%clk 0:00:03.7]} 45... Kg5 {[%clk 0:00:02]} 46.
Nd4 {[%clk 0:00:02.6]} 46... Kh6 {[%clk 0:00:01.6]} 47. Nf5+ {[%clk 0:00:02.6]}
47... Kg5 {[%clk 0:00:01.5]} 48. Nd4 {[%clk 0:00:02.8]} 48... Kh5 {[%clk
0:00:01.7]} 49. Ne6 {[%clk 0:00:03.2]} 49... Bh6 {[%clk 0:00:01.9]} 50. Nc5
{[%clk 0:00:01.9]} 50... f3 {[%clk 0:00:02.4]} 51. gxf3 {[%clk 0:00:02.1]} 51...
gxf3 {[%clk 0:00:03]} 52. Kf1 {[%clk 0:00:02.6]} 52... Qf4 {[%clk 0:00:02.3]}
53. Qxf4 {[%clk 0:00:02.2]} 53... Bxf4 {[%clk 0:00:03.2]} 54. Nxa6 {[%clk
0:00:02.9]} 54... Bc1 {[%clk 0:00:03.6]} 55. Nc7 {[%clk 0:00:03.5]} 55... Bxb2
{[%clk 0:00:04.4]} 56. Nxb5 {[%clk 0:00:04.4]} 56... Kg4 {[%clk 0:00:05.1]} 57.
a4 {[%clk 0:00:04.4]} 57... Bc1 {[%clk 0:00:05.5]} 58. a5 {[%clk 0:00:04.6]} 1-0

[Event "Late-Titled-Tuesday-Blitz-April-23-2024"]
[Site "Chess.com"]
[Date "2024.04.23"]
[Round "7"]
[White "GMKrikor"]
[Black "TimGrutter03"]
[Result "1-0"]
[WhiteElo "2883"]
[BlackElo "2614"]
[TimeControl "180+1"]
[EndTime "15:19:54 PDT"]
[Termination "GMKrikor won by resignation"]

1. Nf3 {[%clk 0:03:00.9]} 1... a6 {[%clk 0:02:58.6]} 2. e4 {[%clk 0:02:53.9]}
2... c6 {[%clk 0:02:58.8]} 3. d4 {[%clk 0:02:51.4]} 3... d5 {[%clk 0:02:59.3]}
4. Nc3 {[%clk 0:02:51.4]} 4... dxe4 {[%clk 0:02:57.4]} 5. Nxe4 {[%clk
0:02:51.7]} 5... Nf6 {[%clk 0:02:57.6]} 6. Nxf6+ {[%clk 0:02:46.6]} 6... exf6
{[%clk 0:02:58.5]} 7. Bd3 {[%clk 0:02:39.8]} 7... c5 {[%clk 0:02:49.1]} 8. O-O
{[%clk 0:02:35.3]} 8... cxd4 {[%clk 0:02:43.8]} 9. Nxd4 {[%clk 0:02:34.7]} 9...
Be7 {[%clk 0:02:42.4]} 10. Nf5 {[%clk 0:02:29.7]} 10... Bxf5 {[%clk 0:02:40.1]}
11. Bxf5 {[%clk 0:02:30.6]} 11... Qxd1 {[%clk 0:02:14.3]} 12. Rxd1 {[%clk
0:02:30]} 12... g6 {[%clk 0:02:14.8]} 13. Be4 {[%clk 0:02:28.2]} 13... Nc6
{[%clk 0:02:14.8]} 14. c3 {[%clk 0:02:27.3]} 14... O-O {[%clk 0:02:06.4]} 15.
Be3 {[%clk 0:02:25.7]} 15... f5 {[%clk 0:02:01.7]} 16. Bf3 {[%clk 0:02:18.7]}
16... Rfd8 {[%clk 0:02:00.9]} 17. Bb6 {[%clk 0:02:17.5]} 17... Rxd1+ {[%clk
0:02:00.5]} 18. Rxd1 {[%clk 0:02:18.4]} 18... Ne5 {[%clk 0:02:00.5]} 19. Be2
{[%clk 0:02:11]} 19... f4 {[%clk 0:01:52.6]} 20. Rd5 {[%clk 0:02:01.8]} 20... f6
{[%clk 0:01:44.8]} 21. a4 {[%clk 0:01:42.9]} 21... Kf7 {[%clk 0:01:35.6]} 22. a5
{[%clk 0:01:39.5]} 22... Ke6 {[%clk 0:01:30]} 23. Rd4 {[%clk 0:01:37.8]} 23...
g5 {[%clk 0:01:27]} 24. Kf1 {[%clk 0:01:36.9]} 24... Rc8 {[%clk 0:01:23.3]} 25.
Bd1 {[%clk 0:01:25.9]} 25... Bc5 {[%clk 0:01:13.7]} 26. Rd8 {[%clk 0:01:01.7]}
26... Rxd8 {[%clk 0:01:08.1]} 27. Bxd8 {[%clk 0:01:02.6]} 27... Be7 {[%clk
0:00:29.2]} 28. Bb6 {[%clk 0:00:57.8]} 28... Bd6 {[%clk 0:00:08.5]} 29. b4
{[%clk 0:00:54.5]} 29... h6 {[%clk 0:00:06.5]} 30. Ke2 {[%clk 0:00:49.4]} 30...
f3+ {[%clk 0:00:05.7]} 31. gxf3 {[%clk 0:00:47.2]} 31... Ng6 {[%clk 0:00:06.3]}
32. Bc2 {[%clk 0:00:35.8]} 32... f5 {[%clk 0:00:03.3]} 33. Bb3+ {[%clk
0:00:31.3]} 33... Kd7 {[%clk 0:00:02.2]} 34. Kf1 {[%clk 0:00:28.9]} 34... Bxh2
{[%clk 0:00:01.8]} 35. Bd5 {[%clk 0:00:29.2]} 35... Kc8 {[%clk 0:00:01.8]} 36.
Be6+ {[%clk 0:00:29.5]} 36... Kb8 {[%clk 0:00:01.9]} 37. Bxf5 {[%clk 0:00:29.8]}
37... Ne7 {[%clk 0:00:02.4]} 38. Be4 {[%clk 0:00:29.2]} 38... Bc7 {[%clk
0:00:02.6]} 39. Bd4 {[%clk 0:00:28.8]} 39... Nc6 {[%clk 0:00:01.9]} 40. Bg7
{[%clk 0:00:28.3]} 40... h5 {[%clk 0:00:01.6]} 41. Bh6 {[%clk 0:00:11]} 41...
Bf4 {[%clk 0:00:01.8]} 42. Kg2 {[%clk 0:00:08.2]} 42... Bd2 {[%clk 0:00:01.6]}
43. Bg6 {[%clk 0:00:05.6]} 43... Bxc3 {[%clk 0:00:01.3]} 44. Bxg5 {[%clk
0:00:05.9]} 44... Bxb4 {[%clk 0:00:01.6]} 45. Bxh5 {[%clk 0:00:06.5]} 45... Bxa5
{[%clk 0:00:02.1]} 46. f4 {[%clk 0:00:07.1]} 46... Bc7 {[%clk 0:00:02.6]} 47. f5
{[%clk 0:00:07.5]} 47... a5 {[%clk 0:00:03]} 48. f6 {[%clk 0:00:08.1]} 48... Bd6
{[%clk 0:00:02.8]} 49. f7 {[%clk 0:00:08]} 49... Ka7 {[%clk 0:00:02.9]} 50. Bh6
{[%clk 0:00:08.4]} 50... a4 {[%clk 0:00:03]} 51. f8=Q {[%clk 0:00:08.6]} 51...
Bxf8 {[%clk 0:00:03.7]} 52. Bxf8 {[%clk 0:00:09.4]} 52... b5 {[%clk 0:00:04.3]}
53. Be8 {[%clk 0:00:09.1]} 53... Nd4 {[%clk 0:00:03.4]} 54. Bc5+ {[%clk
0:00:06.2]} 54... Ka6 {[%clk 0:00:03.9]} 55. Bxd4 {[%clk 0:00:07.1]} 55... b4
{[%clk 0:00:04.2]} 56. Bxa4 {[%clk 0:00:06.4]} 56... Ka5 {[%clk 0:00:05.1]} 57.
Bb3 {[%clk 0:00:06.3]} 1-0